bitfinex-derivatives/quotes_ETHF0:USTF0_20260116
["timestamp","ask_amount","ask_price","bid_price","bid_amount"]
[1768593423104,0.15265,3276.9,3275.7,0.22438258]
[1768593423304,0.15265,3276.9,3275.7,1.22035126]
[1768593427007,0.15265,3276.9,3275.7,0.22438258]
[1768593428711,1.14862868,3276.6,3275.5,0.00367099]
[1768593429108,0.15266,3276.6,3275.5,0.00367099]
[1768593433411,0.15266,3276.6,3275.5,0.23744225]
[1768593435414,0.00221778,3277.1,3275.5,0.23744225]
[1768593436400,1.0534739,3277.0,3275.5,0.23744225]
[1768593436705,0.15264,3277.0,3275.5,0.23744225]
[1768593458128,0.38436866,3276.9,3275.5,0.00367099]
[1768593458318,0.23171866,3276.8,3275.5,0.00367099]
[1768593460121,0.15265,3276.9,3275.5,0.00367099]
[1768593460329,0.15265,3276.9,3275.5,0.24237009]
[1768593461127,0.00221778,3277.1,3275.8,1.23355974]
[1768593461928,0.00221778,3277.1,3275.8,0.2386991]
[1768593470135,0.00221778,3277.1,3275.7,4.158]
[1768593470335,0.23171866,3276.9,3275.5,0.00367099]
[1768593472548,0.38436866,3276.9,3275.5,0.00367099]
[1768593474456,0.15265,3276.9,3275.5,0.24365558]
[1768593474750,0.15265,3276.9,3275.6,1.23484523]
[1768593478756,0.15265,3276.9,3275.7,0.23998459]
[1768593481159,0.00221778,3277.1,3275.7,0.23998459]
[1768593484660,0.15264,3277.0,3275.7,0.23998459]
[1768593484856,0.15264,3277.0,3275.6,0.99486064]
[1768593484857,0.37545921,3277.0,3275.6,4.17]
[1768593488358,0.15265,3276.9,3275.5,0.00367099]
[1768593488662,0.37546921,3276.9,3275.5,4.17767099]
[1768593488861,0.37546921,3276.9,3275.5,0.00367099]
[1768593495463,0.37546921,3276.9,3275.8,0.99460449]
[1768593495655,0.37546921,3276.9,3275.5,0.00367099]
[1768593495857,0.37546921,3276.9,3275.9,0.99460449]
[1768593496370,0.15265,3276.9,3276.3,0.99460449]
[1768593496561,0.15265,3276.9,3276.5,0.99460449]
[1768593497970,0.15265,3276.9,3276.3,0.99460449]
[1768593503575,0.15265,3276.9,3276.1,0.99460449]
[1768593505575,0.15265,3276.9,3276.3,0.99460449]
[1768593506878,0.15265,3276.9,3276.1,0.99460449]
[1768593509779,0.00221778,3277.1,3276.3,0.99460449]
[1768593515379,0.00221778,3277.1,3276.5,0.99460449]
[1768593517286,0.1526,3277.9,3276.9,0.99460449]
[1768593517474,0.90136636,3277.8,3276.9,0.99460449]
[1768593517674,0.90136636,3277.7,3276.9,0.99460449]
[1768593517874,0.1526,3277.9,3276.9,0.99460449]
[1768593518083,0.90135901,3277.8,3276.9,0.99460449]
[1768593518280,0.90135901,3277.7,3276.9,0.99460449]
[1768593518477,0.00353693,3277.7,3276.9,0.99460449]
[1768593521583,0.00353693,3277.7,3276.7,0.99460449]
[1768593522282,0.00353693,3277.7,3277.0,0.99460449]
[1768593530889,0.00353693,3277.7,3276.8,0.99460449]
[1768593533590,0.00353693,3277.7,3276.7,0.23310135]
[1768593533893,0.00353693,3277.7,3276.7,1.22770584]
[1768593536795,0.00353693,3277.7,3276.8,0.99460449]
[1768593538000,0.99814142,3277.7,3276.3,0.24241015]
[1768593538203,0.99814142,3277.7,3276.3,1.23701464]
[1768593539688,0.15262,3277.6,3276.3,1.23701464]
[1768593539903,0.15262,3277.4,3276.1,41.79460449]
[1768593540098,0.15262,3277.4,3276.1,42.03701464]
[1768593540401,0.15262,3277.4,3276.3,0.99460449]
[1768593541301,0.15262,3277.4,3276.3,1.23701464]
[1768593543801,0.15262,3277.4,3276.3,0.24241015]
[1768593544101,0.15262,3277.4,3276.3,1.23701464]
[1768593546208,0.15262,3277.4,3276.3,0.24241015]
[1768593549214,1.14723449,3277.3,3275.9,41.79460449]
[1768593549508,1.14723449,3277.3,3275.9,42.03701464]
[1768593549695,1.14723449,3277.3,3276.0,0.24241015]
[1768593549892,1.14723449,3277.3,3276.1,0.99460449]
[1768593550209,0.15263,3277.3,3276.1,0.99460449]
[1768593551205,0.15263,3277.3,3276.1,1.23701464]
[1768593552799,1.14724449,3277.1,3276.1,0.24241015]
[1768593553002,0.99460449,3276.8,3275.7,0.24241015]
[1768593553201,0.99460449,3276.9,3275.7,0.24241015]
[1768593554706,0.15265,3276.8,3275.6,1.23701464]
[1768593556113,0.15265,3276.8,3275.7,0.24241015]
[1768593557114,0.15265,3276.8,3275.8,0.99460449]
[1768593557314,0.15265,3276.8,3275.7,0.24241015]
[1768593558411,0.15262,3277.4,3275.9,0.24241015]
[1768593558616,1.05123991,3277.3,3275.9,0.24241015]
[1768593558813,0.15263,3277.3,3275.9,0.24241015]
[1768593565937,8.20326732,3279.2,3277.0,0.22351556]
[1768593566136,0.22302215,3279.6,3278.1,0.99464035]
[1768593566325,0.37558215,3278.8,3277.5,0.874]
[1768593566933,0.15575862,3278.8,3277.5,0.87735399]
[1768593568337,0.15575862,3278.8,3277.5,4.16535399]
[1768593570142,0.15575862,3278.8,3277.5,0.00335399]
[1768593570342,0.15575862,3278.8,3277.5,4.16635399]
[1768593573246,0.15575862,3278.8,3277.6,4.166]
[1768593573839,0.15575862,3278.8,3277.5,0.00335399]
[1768593576131,0.15575862,3278.8,3277.5,4.16935399]
[1768593576439,0.15575862,3278.8,3277.5,0.00335399]
[1768593576741,0.15575862,3278.8,3277.5,4.16935399]
[1768593577538,0.15575862,3278.8,3277.5,4.17035399]
[1768593577840,0.15575862,3278.8,3277.5,0.00335399]
[1768593578038,0.15575862,3278.8,3277.5,4.17135399]
[1768593579440,0.15575862,3278.8,3277.5,0.00335399]
[1768593579441,0.15257,3278.7,3277.5,0.00335399]
[1768593579632,0.15257,3278.7,3277.5,4.17235399]
[1768593582139,0.15257,3278.7,3277.5,4.17335399]
[1768593585842,0.15257,3278.7,3277.5,4.17635399]
[1768593586041,0.39229359,3278.7,3277.5,4.17635399]
[1768593595558,0.23725482,3278.5,3277.5,0.00335399]
[1768593595766,0.89000127,3278.4,3277.5,0.00335399]
[1768593596351,0.23725482,3278.5,3277.5,0.00335399]
[1768593596551,0.15258,3278.4,3277.5,0.00335399]
[1768593597958,0.00319862,3278.8,3277.5,0.00335399]
[1768593598158,0.8884114,3278.7,3277.5,0.00335399]
[1768593598360,0.8884114,3278.6,3277.5,0.00335399]
[1768593598563,0.00319862,3278.8,3277.5,0.00335399]
[1768593598769,0.88835003,3278.7,3277.5,0.00335399]
[1768593599060,0.00319862,3278.8,3277.8,0.99464035]
[1768593600360,0.00319862,3278.8,3277.5,0.23527991]
[1768593600663,0.00319862,3278.8,3277.6,4.182]
[1768593601365,0.00319862,3278.8,3277.7,4.182]
[1768593601662,0.00319862,3278.8,3277.6,4.181]
[1768593601865,0.00319862,3278.8,3277.5,0.23527991]
[1768593602063,0.00319862,3278.8,3277.6,4.181]
[1768593604862,0.23725482,3278.6,3277.5,0.00335399]
[1768593605553,0.15258,3278.4,3277.5,0.00335399]
[1768593606162,0.38983482,3278.4,3277.5,0.00335399]
[1768593606372,0.23725482,3278.3,3276.9,1.744]
[1768593606563,0.38984482,3278.2,3276.6,41.03192592]
[1768593606866,0.23725482,3278.1,3276.7,4.178]
[1768593607364,0.15259,3278.2,3276.8,0.23192592]
[1768593607666,0.15259,3278.2,3276.8,0.23521475]
[1768593608064,0.38984482,3278.2,3276.8,0.00328883]
[1768593608268,0.38984482,3278.2,3276.8,4.18128883]
[1768593608566,0.38984482,3278.2,3276.8,0.00328883]
[1768593610066,0.15259,3278.2,3276.8,0.00328883]
[1768593610266,0.15259,3278.2,3276.8,1.2298551]
[1768593610470,0.15259,3278.2,3276.8,5.4098551]
[1768593614668,0.15259,3278.2,3276.9,4.183]
[1768593615977,0.15259,3278.2,3276.8,1.2298551]
[1768593616168,0.15259,3278.2,3276.9,4.185]
[1768593617978,0.15259,3278.2,3276.9,4.41692592]
[1768593619178,0.15259,3278.2,3277.0,0.23192592]
[1768593619375,0.15259,3278.2,3277.4,0.99359454]
[1768593620580,0.15259,3278.2,3277.2,0.99359454]
[1768593621291,0.15259,3278.2,3276.8,0.00328883]
[1768593621485,0.41279903,3278.2,3277.1,4.187]
[1768593623179,0.41279903,3278.2,3277.0,4.189]
[1768593624285,0.41279903,3278.2,3277.0,5.18259454]
[1768593624471,0.15259,3278.2,3277.0,5.18259454]
[1768593626878,0.15259,3278.2,3276.8,1.25515114]
[1768593627186,0.15261,3277.7,3276.8,0.00328883]
[1768593630783,0.15261,3277.7,3276.9,0.99359454]
[1768593630984,0.41156371,3278.3,3276.9,0.99359454]
[1768593631176,1.04120142,3278.2,3276.9,0.99359454]
[1768593631382,0.88861142,3278.1,3276.9,0.99359454]
[1768593634082,1.04120142,3278.1,3276.9,0.99359454]
[1768593634283,1.04120142,3278.1,3277.1,0.99359454]
[1768593634284,0.15259,3278.1,3277.1,0.99359454]
[1768593635284,0.88979171,3278.0,3276.8,0.00328883]
[1768593635477,0.99359454,3277.8,3276.8,0.00328883]
[1768593635882,1.40517825,3278.0,3276.8,0.00328883]
[1768593637794,0.41158371,3278.0,3276.8,0.00328883]
[1768593646487,0.1526,3278.0,3276.8,0.00328883]
[1768593646790,0.41155371,3278.5,3277.5,0.99359454]
[1768593647191,0.41155371,3278.5,3277.3,0.99359454]
[1768593648591,1.25257825,3278.5,3277.1,0.99359454]
[1768593649585,0.15258,3278.3,3277.1,0.99359454]
[1768593649785,0.15258,3278.3,3277.0,0.99359454]
[1768593651398,0.15258,3278.3,3277.2,0.99359454]
[1768593652598,0.15258,3278.3,3277.4,0.99359454]
[1768593660301,0.15258,3278.3,3277.0,0.24722488]
[1768593660601,0.15258,3278.3,3277.2,0.99359454]
[1768593661200,0.15258,3278.3,3277.4,0.99359454]
[1768593661901,0.25628223,3278.7,3277.6,0.99359454]
[1768593662196,0.00319862,3278.8,3277.6,0.99359454]
[1768593662806,0.15575862,3278.8,3277.6,0.99359454]
[1768593663592,0.15256,3278.7,3277.3,0.99359454]
[1768593664703,0.15257,3278.6,3277.3,0.99359454]
[1768593665001,1.14616454,3278.5,3277.3,0.99359454]
[1768593665199,1.14616454,3278.5,3277.3,5.16759454]
[1768593665505,0.99359454,3277.8,3276.8,0.00328883]
[1768593665705,0.99359454,3277.6,3276.8,0.00328883]
[1768593665896,0.99359454,3277.8,3276.8,0.00328883]
[1768593666198,0.99359454,3277.6,3276.8,0.00328883]
[1768593666393,0.99359454,3277.6,3276.2,40.8]
[1768593666394,0.99359454,3277.4,3276.0,3.97658362]
[1768593666594,0.99359454,3277.2,3276.0,3.82389362]
[1768593666802,0.99359454,3277.2,3276.0,0.99359454]
[1768593667198,1.24987677,3277.4,3276.0,0.99359454]
[1768593667399,1.24987677,3277.4,3276.0,0.99741758]
[1768593667697,0.40890223,3277.4,3276.0,0.99741758]
[1768593668403,0.40890223,3277.4,3276.2,0.99359454]
[1768593673809,0.15263,3277.3,3276.2,0.99359454]
[1768593674709,0.40891223,3277.3,3276.2,0.99359454]
[1768593675303,0.15263,3277.3,3276.2,0.99359454]
[1768593677809,0.15263,3277.3,3276.1,4.186]
[1768593678415,0.15263,3277.3,3276.0,5.18441758]
[1768593679306,0.15263,3277.3,3276.0,4.19082304]
[1768593687120,0.15263,3277.3,3276.4,0.99438327]
[1768593688118,0.1526,3278.0,3276.5,0.252619]
[1768593688533,0.1526,3277.9,3276.5,0.252619]
[1768593690541,0.1526,3277.9,3276.7,1.24225538]
[1768593692837,0.1526,3277.9,3276.7,0.24787211]
[1768593693042,0.1526,3277.9,3276.6,4.193]
[1768593693228,0.39101919,3277.9,3276.6,4.192]
[1768593693534,0.39102919,3277.7,3276.0,0.00382304]
[1768593693835,0.39102919,3277.7,3276.1,4.192]
[1768593695031,0.39102919,3277.7,3276.1,0.24787211]
[1768593695237,0.39102919,3277.7,3276.2,4.44287211]
[1768593695925,0.15261,3277.7,3276.2,4.44287211]
[1768593696129,0.15261,3277.7,3276.5,0.24787211]
[1768593696334,0.15258,3278.3,3276.8,1.24225538]
[1768593698937,0.15258,3278.3,3276.9,0.24787211]
[1768593699838,0.15258,3278.3,3277.2,1.24225538]
[1768593703142,0.15258,3278.3,3277.1,4.19]
[1768593703846,0.15258,3278.3,3276.8,1.24225538]
[1768593704147,0.15258,3278.3,3277.0,0.24787211]
[1768593705040,0.15258,3278.3,3277.2,0.99438327]
[1768593705548,0.15258,3278.3,3277.2,1.24225538]
[1768593705844,0.00319862,3278.8,3278.0,0.99438327]
[1768593706047,0.00319862,3278.8,3277.6,1.24225538]
[1768593706746,0.15252,3279.6,3277.7,0.24787211]
[1768593706939,0.15253,3279.5,3277.7,0.24787211]
[1768593707841,0.15567999,3279.5,3277.7,0.24787211]
[1768593708042,0.15567999,3279.5,3277.8,41.04787211]
[1768593708242,0.15567999,3279.5,3278.1,1.24225538]
[1768593709048,0.15567999,3279.5,3278.1,0.24787211]
[1768593710048,0.15567999,3279.5,3278.1,4.43887211]
[1768593711946,0.15253,3279.4,3278.0,4.192]
[1768593712252,0.15254,3279.3,3278.0,4.192]
[1768593712452,0.2412927,3279.5,3277.8,40.8]
[1768593712753,0.23814271,3279.0,3277.6,4.193]
[1768593713855,0.15256,3278.8,3277.3,4.42247298]
[1768593716448,0.15256,3278.8,3277.4,0.22947298]
[1768593716648,0.15256,3278.8,3277.5,0.22947298]
[1768593718355,0.15256,3278.8,3277.6,4.195]
[1768593721554,0.15256,3278.8,3277.5,0.22947298]
[1768593721754,0.15256,3278.8,3277.5,4.42647298]
[1768593722656,0.15256,3278.8,3277.5,0.22947298]
[1768593722862,0.15256,3278.8,3277.5,4.198]
[1768593723160,0.15257,3278.5,3277.4,4.198]
[1768593723663,0.15257,3278.5,3277.2,4.198]
[1768593724364,0.15258,3278.4,3277.2,4.198]
[1768593724750,0.15258,3278.4,3276.7,1.22385625]
[1768593724952,0.15258,3278.4,3276.8,4.199]
[1768593725153,0.15258,3278.4,3276.8,4.42847298]
[1768593725348,0.15258,3278.4,3276.9,41.02947298]
[1768593725860,0.15258,3278.4,3277.1,0.99438327]
[1768593726063,0.15255,3279.0,3277.5,0.99438327]
[1768593726265,0.15256,3278.9,3277.2,0.22947298]
[1768593727549,0.15257,3278.6,3276.9,40.95264]
[1768593727865,0.15257,3278.5,3277.0,4.201]
[1768593728766,0.15258,3278.4,3276.9,40.95264]
[1768593729160,0.15258,3278.4,3277.0,4.203]
[1768593729358,0.15258,3278.4,3276.9,40.95264]
[1768593729359,0.15258,3278.4,3277.1,4.203]
[1768593730660,0.15258,3278.4,3276.9,40.8]
[1768593730865,0.15258,3278.4,3277.0,4.204]
[1768593732259,0.15258,3278.3,3276.9,40.8]
[1768593732566,0.15258,3278.3,3277.0,4.205]
[1768593733463,0.15259,3278.2,3276.9,40.8]
[1768593733666,0.15259,3278.2,3277.0,4.207]
[1768593735168,0.39070271,3278.8,3277.2,0.22947298]
[1768593736366,0.15256,3278.7,3277.2,0.22947298]
[1768593737768,0.15257,3278.6,3277.2,0.22947298]
[1768593738965,0.15258,3278.4,3277.3,4.212]
[1768593741567,0.15258,3278.4,3277.3,4.215]
[1768593742666,0.15258,3278.4,3277.3,4.216]
[1768593743875,0.15258,3278.3,3276.8,41.02947298]
[1768593744377,0.15258,3278.3,3276.9,4.218]
[1768593745474,0.15258,3278.3,3276.9,4.42881872]
[1768593746071,0.15258,3278.3,3277.0,4.219]
[1768593748268,0.15258,3278.3,3277.0,4.22]
[1768593749468,0.15259,3278.2,3277.0,4.22]
[1768593750786,0.15259,3278.2,3277.0,4.224]
[1768593751181,0.15259,3278.2,3276.7,3.82389362]
[1768593751383,0.1526,3277.9,3276.7,3.82389362]
[1768593751679,0.1526,3277.9,3276.4,4.224]
[1768593753279,0.15261,3277.8,3276.2,3.82389362]
[1768593753476,0.15261,3277.8,3276.3,4.225]
[1768593755782,0.15261,3277.8,3276.4,0.19068942]
[1768593757276,0.15261,3277.8,3276.5,4.229]
[1768593759284,0.15261,3277.8,3276.6,0.99401092]
[1768593759987,0.15261,3277.8,3276.8,0.99401092]
[1768593761987,0.15261,3277.8,3276.6,0.99401092]
[1768593763684,0.15261,3277.8,3277.0,0.99401092]
[1768593764185,0.15261,3277.8,3276.7,0.19068942]
[1768593764186,0.15261,3277.8,3276.8,4.237]
[1768593764689,0.15261,3277.8,3276.7,5.23201092]
[1768593765486,0.15261,3277.8,3276.7,0.99401092]
[1768593770104,0.15261,3277.8,3276.9,0.99401092]
[1768593770395,0.15261,3277.8,3277.3,0.99401092]
[1768593770600,0.15258,3278.4,3277.3,0.99401092]
[1768593770788,1.04310584,3278.3,3277.3,0.99401092]
[1768593771102,0.15258,3278.3,3277.3,0.99401092]
[1768593773106,0.15259,3278.2,3277.3,0.99401092]
[1768593774402,0.15259,3278.2,3276.9,0.19068942]
[1768593774595,0.15259,3278.2,3277.2,0.99401092]
[1768593775800,0.99401092,3277.7,3276.3,0.99401092]
[1768593777100,0.99401092,3277.5,3276.1,40.8]
[1768593777301,1.14663092,3277.5,3276.0,10.04428296]
[1768593777602,1.14663092,3277.5,3276.2,0.99401092]
[1768593777800,0.15262,3277.5,3276.2,0.99401092]
[1768593778203,0.15262,3277.5,3276.4,0.99401092]
[1768593781211,0.99401092,3277.3,3276.0,42.58883031]
[1768593781409,0.99401092,3277.3,3276.0,1.78883031]
[1768593781805,0.15263,3277.4,3276.2,0.99401092]
[1768593783412,0.15263,3277.4,3276.0,0.79481939]
[1768593783611,0.15263,3277.4,3276.2,0.99401092]
[1768593784015,0.15263,3277.3,3276.2,0.99401092]
[1768593784906,0.15263,3277.3,3276.0,1.78883031]
[1768593785811,0.15263,3277.3,3276.0,0.79481939]
[1768593786008,0.15263,3277.3,3276.4,0.99401092]
[1768593786907,0.15263,3277.3,3276.1,0.99401092]
[1768593787105,0.15263,3277.3,3276.0,0.79481939]
[1768593787106,0.15263,3277.2,3276.0,0.79481939]
[1768593787308,0.15478965,3277.2,3276.0,0.79481939]
[1768593789317,0.15478965,3277.2,3276.1,0.99401092]
[1768593789618,0.15478965,3277.2,3276.3,0.99401092]
[1768593789816,0.15478965,3277.2,3276.5,0.99401092]
[1768593790615,0.15478965,3277.2,3276.3,0.99401092]
[1768593791010,0.15478965,3277.2,3276.1,0.99401092]
[1768593791418,0.15478965,3277.2,3276.0,0.79481939]
[1768593791627,0.15264,3277.0,3276.0,0.00382304]
[1768593793516,0.15265,3276.9,3276.0,0.00382304]
[1768593797418,1.14666092,3276.8,3276.0,0.00382304]
[1768593797623,1.14668092,3276.4,3274.9,3.82389362]
[1768593797810,1.14668092,3276.4,3275.0,4.252]
[1768593798007,0.15267,3276.4,3275.3,0.99401092]
[1768593798314,0.15267,3276.4,3274.7,3.97664362]
[1768593798619,0.15267,3276.4,3275.4,0.99401092]
[1768593800116,0.15268,3276.3,3274.9,40.8]
[1768593800418,0.15268,3276.3,3275.0,0.99401092]
[1768593800620,0.15268,3276.3,3275.2,0.99401092]
[1768593801919,0.15268,3276.3,3275.4,0.99401092]
[1768593803327,0.15268,3276.3,3274.9,5.24681061]
[1768593804722,0.15268,3276.3,3274.9,5.24781061]
[1768593805228,0.32050692,3276.3,3274.7,0.15503628]
[1768593805429,0.32050692,3276.3,3274.7,4.40903628]
[1768593805430,0.16782692,3276.2,3274.7,4.40903628]
[1768593806121,0.32050692,3276.2,3274.7,4.40903628]
[1768593806320,0.32050692,3276.2,3274.7,0.15503628]
[1768593806526,0.32050692,3276.2,3274.7,4.40903628]
[1768593808023,0.15269,3276.1,3274.7,0.00228628]
[1768593808223,0.1527,3275.7,3274.7,0.00228628]
[1768593808429,0.15271,3275.6,3274.7,0.00228628]
[1768593808632,0.15271,3275.5,3274.7,0.00228628]
[1768593808923,0.15272,3275.3,3274.2,0.80161431]
[1768593809226,0.15272,3275.3,3273.8,3.467]
[1768593809420,0.32260292,3275.3,3273.6,4.5876852]
[1768593809620,0.15273,3275.2,3273.6,4.5876852]
[1768593809824,0.16988292,3275.1,3273.3,3.82389362]
[1768593810028,0.15274,3275.0,3273.4,0.00928115]
[1768593810232,0.32262292,3275.0,3273.4,0.00928115]
[1768593810623,0.15274,3274.9,3273.4,0.00928115]
[1768593810820,0.15610557,3274.9,3273.4,0.00928115]
[1768593811020,0.32598849,3274.9,3273.4,0.00928115]
[1768593811426,0.15275,3274.8,3273.4,0.00928115]
[1768593812324,0.15275,3274.7,3273.4,0.00928115]
[1768593812520,0.32263292,3274.7,3273.4,0.00928115]
[1768593819236,0.32263292,3274.7,3273.4,1.00409176]
[1768593821431,0.16988292,3274.6,3273.4,0.00928115]
[1768593823547,0.15275,3274.7,3273.4,1.00409176]
[1768593825542,0.32263292,3274.7,3273.4,1.00409176]
[1768593826839,0.15275,3274.7,3273.8,0.99481061]
[1768593827043,0.15273,3275.2,3273.8,0.99481061]
[1768593827244,0.15273,3275.2,3273.8,1.17108236]
[1768593827446,0.15273,3275.2,3273.9,0.17627175]
[1768593827740,0.15273,3275.2,3273.9,40.97627175]
[1768593828043,0.1564138,3275.2,3273.9,40.97627175]
[1768593828244,0.1564138,3275.2,3273.9,40.8]
[1768593828839,0.32629672,3275.2,3273.9,45.063]
[1768593829548,0.32629672,3275.2,3273.9,4.263]
[1768593834450,0.17443224,3274.8,3273.4,0.00928115]
[1768593834645,0.32718224,3274.7,3273.4,4.27828115]
[1768593834847,0.32718224,3274.7,3273.5,4.269]
[1768593835350,0.15275,3274.6,3273.4,0.00928115]
[1768593836050,0.32718224,3274.6,3273.4,0.00928115]
[1768593836452,0.32720224,3274.4,3273.4,0.00928115]
[1768593837349,0.17443224,3274.3,3273.4,0.00928115]
[1768593837853,0.17443224,3273.8,3272.4,0.99481061]
[1768593838036,0.17443224,3273.8,3272.5,45.069]
[1768593838445,0.17443224,3273.8,3272.6,4.269]
[1768593838953,0.17443224,3273.8,3272.6,4.27187291]
[1768593840455,0.17443224,3273.8,3272.7,4.274]
[1768593841855,0.15279,3273.9,3272.8,0.99481061]
[1768593842355,0.15279,3273.9,3272.7,4.274]
[1768593842552,0.15279,3273.9,3272.7,4.277]
[1768593842755,0.32722224,3273.9,3272.7,4.277]
[1768593843048,0.17443224,3273.8,3272.6,0.00287291]
[1768593843250,0.17443224,3273.6,3272.6,0.00287291]
[1768593845961,0.32723224,3273.6,3272.6,0.00287291]
[1768593846550,0.32724224,3273.5,3272.6,0.00287291]
[1768593847955,0.17443224,3273.4,3272.6,0.00287291]
[1768593848650,0.17443224,3273.0,3271.4,3.82389362]
[1768593848855,0.17443224,3273.0,3271.3,0.15291]
[1768593848856,0.17443224,3272.8,3271.2,4.27]
[1768593849362,0.17443224,3272.7,3271.1,40.95822369]
[1768593849557,0.17443224,3272.7,3271.2,4.272]
[1768593849754,0.17825718,3272.7,3271.2,4.272]
[1768593850351,0.17825718,3272.7,3271.1,40.96206065]
[1768593850552,0.17825718,3272.7,3271.2,4.273]
[1768593851254,0.17825718,3272.7,3271.3,4.274]
[1768593851454,0.17825718,3272.7,3271.1,40.96206065]
[1768593851655,0.17825718,3272.7,3271.3,4.274]
[1768593854062,0.00382494,3272.7,3271.3,4.274]
[1768593863169,0.1675392,3272.7,3271.1,0.16206065]
[1768593863373,0.1675392,3272.7,3271.1,0.00383696]
[1768593864676,0.31658426,3272.2,3271.1,0.00383696]
[1768593865276,0.16371426,3272.2,3271.1,0.00383696]
[1768593865470,0.3203792,3272.7,3271.1,0.00383696]
[1768593865670,0.16371426,3272.6,3271.1,0.00383696]
[1768593866772,0.16371426,3272.4,3271.1,0.00383696]
[1768593871276,0.16371426,3272.4,3271.2,0.99728815]
[1768593873572,0.15285,3272.5,3271.8,0.99728815]
[1768593873879,0.00382494,3272.7,3271.8,0.99728815]
[1768593875979,0.00382494,3272.7,3271.6,0.99728815]
[1768593877181,0.16548735,3272.7,3271.4,0.99728815]
[1768593877378,1.15895056,3272.6,3271.4,0.99728815]
[1768593877883,0.16166241,3272.5,3271.2,4.287]
[1768593878571,0.16166241,3272.5,3271.3,0.99728815]
[1768593879982,0.16166241,3272.5,3271.2,0.99728815]
[1768593881280,0.16166241,3272.5,3271.4,0.99728815]
[1768593884086,0.15285,3272.6,3271.6,0.99728815]
[1768593884888,0.15285,3272.6,3271.4,0.99728815]
[1768593885287,0.31451241,3272.6,3271.4,0.99728815]
[1768593885881,0.99728815,3271.8,3270.8,3.82389362]
[1768593886082,0.99728815,3271.5,3270.1,0.99728815]
[1768593886387,0.99728815,3271.3,3270.0,7.12180791]
[1768593886594,0.99728815,3271.1,3269.9,4.293]
[1768593886885,0.99728815,3271.1,3269.9,0.00337371]
[1768593887092,0.16166241,3270.8,3269.9,0.00337371]
[1768593891190,1.43762367,3272.2,3269.9,0.00337371]
[1768593891191,0.31456241,3271.4,3269.9,0.00337371]
[1768593891389,0.15054905,3271.3,3269.9,0.00337371]
[1768593891685,0.15054905,3271.1,3269.9,0.00337371]
[1768593891890,0.30346905,3271.0,3269.9,0.00337371]
[1768593892085,0.15292,3271.0,3269.9,0.00337371]
[1768593892796,0.30346905,3271.0,3269.9,0.00337371]
[1768593893793,0.15292,3271.0,3269.9,0.00337371]
[1768593900309,0.30346905,3271.0,3269.9,0.00337371]
[1768593900514,0.15054905,3270.9,3269.9,0.00337371]
[1768593902516,0.15054905,3271.4,3269.9,0.00337371]
[1768593905410,0.30344905,3271.4,3269.9,0.00337371]
[1768593905610,0.15054905,3271.2,3269.9,0.00337371]
[1768593905806,0.15054905,3271.0,3269.9,0.00337371]
[1768593906609,0.15054905,3270.8,3269.9,0.00337371]
[1768593906811,0.15054905,3270.7,3269.9,0.00337371]
[1768593908115,0.15054905,3270.3,3269.4,0.006117]
[1768593908314,0.30350905,3270.2,3269.4,0.006117]
[1768593908516,0.15054905,3270.0,3268.4,4.18604]
[1768593908712,0.15054905,3270.0,3268.4,44.98604]
[1768593909219,0.00376002,3270.0,3268.5,0.30549186]
[1768593909405,0.00376002,3270.0,3268.5,0.15304]
[1768593909610,0.00376002,3270.0,3268.6,4.294]
[1768593910220,0.00376002,3270.0,3268.5,0.15304]
[1768593910422,0.15430907,3270.0,3268.5,0.15304]
[1768593910624,0.15430907,3270.0,3268.4,0.00347196]
[1768593910819,0.30353905,3269.5,3268.4,0.00347196]
[1768593911018,0.00376002,3270.0,3268.4,1.44109563]
[1768593911218,0.00376002,3270.0,3268.4,1.59354749]
[1768593912119,0.00376002,3270.0,3268.5,0.15245186]
[1768593912313,0.00376002,3270.0,3268.6,0.15245186]
[1768593913214,0.00376002,3270.0,3268.7,4.297]
[1768593913408,0.00376002,3270.0,3268.8,4.297]
[1768593913616,0.15430907,3270.0,3268.4,0.00347196]
[1768593913911,0.15430907,3270.0,3268.5,4.297]
[1768593914118,0.15430907,3270.0,3268.5,4.298]
[1768593914718,0.00376002,3270.0,3268.5,4.45045186]
[1768593914914,0.00376002,3270.0,3268.6,0.15245186]
[1768593915716,0.00376002,3270.0,3268.7,4.299]
[1768593916623,0.00376002,3270.0,3268.6,4.3]
[1768593916822,0.15430907,3270.0,3268.5,4.3]
[1768593918526,0.15430907,3270.0,3268.4,0.15651196]
[1768593918823,0.15430907,3270.0,3268.5,4.301]
[1768593919226,0.00376002,3270.0,3268.6,0.15245186]
[1768593919817,0.00376002,3270.0,3268.7,4.302]
[1768593920218,0.00376002,3270.0,3268.8,4.303]
[1768593923031,0.00376002,3270.0,3268.9,4.305]
[1768593925530,0.14263006,3269.7,3268.4,0.00347196]
[1768593926527,0.29561006,3269.7,3268.4,0.00347196]
[1768593928832,0.29561006,3269.7,3268.4,4.31347196]
[1768593929030,0.00376002,3270.0,3268.4,4.31347196]
[1768593929231,0.14639008,3270.0,3268.4,4.31347196]
[1768593929433,0.29936008,3270.0,3268.4,4.31347196]
[1768593929633,0.15047121,3269.9,3268.4,4.31347196]
[1768593929934,0.15047121,3269.9,3268.4,0.00347196]
[1768593929935,0.15047121,3269.8,3268.4,0.00347196]
[1768593934827,0.15047121,3269.8,3268.4,4.31747196]
[1768593935338,0.15297,3269.9,3268.4,4.31747196]
[1768593935731,0.30344121,3269.9,3268.4,4.31747196]
[1768593938637,0.00376002,3270.0,3268.5,0.15411719]
[1768593938842,0.00376002,3270.0,3268.8,0.15411719]
[1768593939134,0.15047121,3270.9,3269.0,0.30712719]
[1768593939341,0.15047121,3270.9,3269.2,0.15411719]
[1768593939536,0.15047121,3270.9,3269.4,0.153]
[1768593939841,0.15047121,3271.4,3269.5,40.8]
[1768593940240,0.15404675,3271.4,3269.5,40.8]
[1768593940743,0.15047121,3271.3,3269.5,40.8]
[1768593940946,0.15047121,3271.3,3269.6,4.316]
[1768593942036,0.15047121,3271.3,3269.7,4.318]
[1768593942739,0.15047121,3271.3,3269.7,4.47211719]
[1768593942932,0.15647554,3271.4,3269.8,4.32]
[1768593943442,0.00357554,3271.4,3269.8,4.32]
[1768593943635,0.00357554,3271.4,3269.8,4.47411719]
[1768593943834,0.00357554,3271.4,3269.9,0.30708719]
[1768593944034,0.15404675,3271.4,3269.9,0.15297]
[1768593944236,0.15404675,3271.4,3270.0,4.323]